bitfinex-derivatives/quotes_SOLF0:USTF0_20251210
["timestamp","ask_amount","ask_price","bid_price","bid_amount"]
[1765326309959,3.07,137.52,137.49,3.25]
[1765326310763,3.11635016,137.52,137.49,3.29976403]
[1765326311264,6.5445,137.51,137.49,3.29976403]
[1765326312167,3.11635016,137.52,137.49,3.29976403]
[1765326313566,9.66035016,137.52,137.49,3.29976403]
[1765326315470,3.11635016,137.52,137.49,3.29976403]
[1765326316262,6.59025016,137.52,137.49,3.36976403]
[1765326316467,9.73025016,137.52,137.49,3.36976403]
[1765326317856,0.04635016,137.52,137.49,3.36976403]
[1765326319469,0.04635016,137.52,137.49,9.91506403]
[1765326320166,0.04635016,137.52,137.49,6.59506403]
[1765326320367,0.04635016,137.52,137.5,3.32]
[1765326325182,3.18635016,137.52,137.5,3.32]
[1765326325881,12.31660833,137.52,137.5,3.32]
[1765326326077,3.14,137.51,137.49,3.36976403]
[1765326326880,3.14,137.51,137.49,0.04976403]
[1765326331084,9.6847,137.51,137.49,0.04976403]
[1765326331273,5.79625817,137.5,137.49,0.04976403]
[1765326332486,12.34115817,137.5,137.49,0.04976403]
[1765326332686,3.21,137.49,137.44,3.18]
[1765326332887,3.21,137.47,137.44,3.18]
[1765326333580,3.26059111,137.47,137.44,3.23519747]
[1765326333786,3.26059111,137.47,137.44,0.05519747]
[1765326334482,3.21,137.46,137.44,0.05519747]
[1765326334880,3.26059111,137.47,137.44,3.23519747]
[1765326335478,3.26059111,137.47,137.44,0.05519747]
[1765326335479,5.79625817,137.46,137.44,0.05519747]
[1765326335684,3.21,137.45,137.44,0.05519747]
[1765326339982,6.5488,137.42,137.39,3.18]
[1765326340189,3.21,137.41,137.38,65.0]
[1765326340579,9.7593,137.41,137.38,65.0]
[1765326341186,9.8072528,137.41,137.38,65.05118558]
[1765326341383,9.7597,137.4,137.38,61.87118558]
[1765326341583,6.5497,137.4,137.38,65.05118558]
[1765326342185,9.7597,137.4,137.38,0.05118558]
[1765326342891,3.21,137.39,137.38,0.05118558]
[1765326344787,0.0479528,137.41,137.38,3.23118558]
[1765326345386,6.5497,137.4,137.38,3.23118558]
[1765326345989,6.5497,137.4,137.38,0.05118558]
[1765326346197,6.5497,137.4,137.38,3.23118558]
[1765326346892,9.7597,137.4,137.38,3.23118558]
[1765326347095,6.5497,137.4,137.38,3.23118558]
[1765326348194,0.0479528,137.41,137.38,3.23118558]
[1765326349294,0.0479528,137.41,137.39,3.18]
[1765326349599,0.0479528,137.41,137.4,3.18]
[1765326350197,3.21,137.47,137.4,3.18]
[1765326351090,0.05476891,137.45,137.42,3.22618561]
[1765326354508,0.05476891,137.45,137.42,9.77488561]
[1765326354908,0.05476891,137.45,137.43,3.18]
[1765326355112,0.05476891,137.45,137.43,9.7281]
[1765326355310,0.05476891,137.45,137.44,3.18]
[1765326357414,9.7558,137.49,137.44,9.7273]
[1765326357719,3.21,137.48,137.45,3.18]
[1765326358507,3.26551288,137.48,137.45,3.2276302]
[1765326362722,3.26551288,137.48,137.46,3.15]
[1765326362920,0.05551288,137.48,137.46,3.15]
[1765326363320,0.05551288,137.48,137.47,9.6963]
[1765326363516,6.5439,137.53,137.48,3.15]
[1765326363723,9.8639,137.53,137.48,3.15]
[1765326364627,0.0498456,137.52,137.49,3.19608816]
[1765326367118,3.3698456,137.52,137.49,0.04608816]
[1765326367426,3.32,137.51,137.49,0.04608816]
[1765326368023,9.8645,137.51,137.49,0.04608816]
[1765326368224,3.32,137.5,137.49,0.04608816]
[1765326368422,3.32,137.5,137.43,3.15]
[1765326369217,101.791,137.53,137.45,3.15]
[1765326369433,3.32,137.49,137.48,0.05490312]
[1765326371130,3.12667443,137.5,137.48,0.05490312]
[1765326372024,3.12667443,137.5,137.48,3.20490312]
[1765326372333,3.12667443,137.5,137.48,0.05490312]
[1765326374023,0.04667443,137.5,137.48,3.20490312]
[1765326375331,3.12667443,137.5,137.48,3.20490312]
[1765326379032,0.04667443,137.5,137.48,9.75060312]
[1765326379239,0.04667443,137.5,137.49,3.15]
[1765326379637,0.04667443,137.5,137.49,9.6954]
[1765326379837,3.08,137.55,137.5,3.15]
[1765326380534,3.08,137.54,137.49,6.5449]
[1765326380740,3.08,137.54,137.48,61.84]
[1765326380937,3.08,137.51,137.5,0.05551585]
[1765326382026,3.13457616,137.52,137.5,0.05551585]
[1765326382230,0.05457616,137.52,137.5,3.20551585]
[1765326383541,0.05457616,137.52,137.51,3.15]
[1765326384441,3.08,137.55,137.51,9.6944]
[1765326384943,3.08,137.55,137.51,3.15]
[1765326385130,3.08,137.53,137.5,0.05551585]
[1765326385336,7.11810092,137.53,137.5,0.05551585]
[1765326385535,3.08,137.52,137.5,0.05551585]
[1765326386746,9.624,137.52,137.5,0.05551585]
[1765326388348,3.08,137.51,137.5,0.05551585]
[1765326390146,9.6244,137.51,137.5,0.05551585]
[1765326400359,3.21,137.49,137.46,3.03]
[1765326400858,3.21,137.48,137.45,3.03]
[1765326401357,3.26401546,137.48,137.45,3.08373222]
[1765326402059,3.21,137.47,137.45,0.05373222]
[1765326402757,9.7564,137.47,137.45,0.05373222]
[1765326404151,3.21,137.46,137.45,0.05373222]
[1765326405159,3.26401546,137.48,137.45,3.08373222]
[1765326405655,3.26401546,137.48,137.45,0.05373222]
[1765326406954,3.26401546,137.48,137.46,3.03]
[1765326407254,3.26401546,137.48,137.45,0.05373222]
[1765326407663,3.21,137.46,137.45,0.05373222]
[1765326409054,3.26401546,137.48,137.45,3.08373222]
[1765326410464,9.80991546,137.48,137.45,3.08373222]
[1765326410663,0.05401546,137.48,137.45,3.08373222]
[1765326411266,0.05401546,137.48,137.46,3.03]
[1765326416165,3.26401546,137.48,137.45,0.05373222]
[1765326416668,9.7568,137.46,137.45,0.05373222]
[1765326420666,6.5468,137.46,137.45,3.23373222]
[1765326421067,6.5468,137.46,137.45,0.05373222]
[1765326421575,9.6168,137.46,137.45,0.05373222]
[1765326423379,6.60021546,137.48,137.45,3.23373222]
[1765326423878,0.05401546,137.48,137.45,3.23373222]
[1765326427871,3.08401546,137.48,137.45,3.23373222]
[1765326428070,3.08401546,137.48,137.45,0.05373222]
[1765326428479,3.08401546,137.48,137.45,3.32373222]
[1765326429382,0.05401546,137.48,137.45,3.32373222]
[1765326430482,3.08401546,137.48,137.46,3.27]
[1765326430679,3.08401546,137.48,137.45,3.32373222]
[1765326431787,9.62991546,137.48,137.45,3.32373222]
[1765326432078,3.03,137.47,137.45,3.32373222]
[1765326432387,3.08401546,137.48,137.45,3.32373222]
[1765326432984,3.08401546,137.48,137.46,3.27]
[1765326432985,0.05401546,137.48,137.46,3.27]
[1765326433283,3.08401546,137.48,137.46,3.27]
[1765326434085,3.08401546,137.48,137.45,0.05373222]
[1765326434278,3.08401546,137.48,137.45,3.32373222]
[1765326434481,0.05401546,137.48,137.45,3.32373222]
[1765326434686,0.05401546,137.48,137.47,6.5463]
[1765326434876,0.05401546,137.48,137.47,9.8163]
[1765326435681,9.574,137.52,137.48,3.27]
[1765326435882,3.03,137.51,137.48,3.27]
[1765326436785,3.08180596,137.51,137.48,3.31588917]
[1765326436985,3.08180596,137.51,137.48,9.86168917]
[1765326438189,9.62620596,137.51,137.48,0.04588917]
[1765326438388,3.08180596,137.51,137.48,0.04588917]
[1765326438886,3.03,137.49,137.48,0.04588917]
[1765326441175,3.08180596,137.51,137.48,3.31588917]
[1765326441590,3.08180596,137.51,137.48,0.04588917]
[1765326443590,3.08180596,137.51,137.48,6.59168917]
[1765326444388,3.08180596,137.51,137.48,9.86168917]
[1765326447092,3.03,137.5,137.48,9.86168917]
[1765326448192,3.03,137.5,137.48,3.31588917]
[1765326448581,6.59620596,137.51,137.41,62.0]
[1765326448582,3.03,137.48,137.42,3.27]
[1765326449188,5.78573263,137.51,137.45,3.08]
[1765326449584,0.04890355,137.49,137.47,0.05000132]
[1765326449784,3.24890355,137.49,137.47,0.05000132]
[1765326451592,12.38003618,137.49,137.47,0.05000132]
[1765326451788,3.2,137.48,137.47,0.05000132]
[1765326452093,3.2,137.46,137.43,3.08]
[1765326452390,9.7466,137.47,137.43,3.08]
[1765326452990,0.05582587,137.46,137.44,0.04678729]
[1765326453189,0.05582587,137.46,137.44,3.12678729]
[1765326455394,6.60262587,137.46,137.44,3.12678729]
[1765326455690,3.2,137.45,137.44,0.04678729]
[1765326457391,0.05582587,137.46,137.44,0.04678729]
[1765326457392,3.25582587,137.46,137.44,3.12678729]
[1765326458993,0.05582587,137.46,137.44,3.12678729]
[1765326459689,3.25582587,137.46,137.44,3.12678729]
[1765326462393,0.05582587,137.46,137.44,9.67448729]
[1765326463294,0.05582587,137.46,137.45,3.08]
[1765326463800,0.05582587,137.46,137.45,9.6273]
[1765326470101,3.2,137.5,137.48,3.08]
[1765326470607,3.2,137.5,137.47,9.6263]
[1765326471005,3.24736891,137.5,137.47,9.67433557]
[1765326472804,3.2,137.49,137.47,6.59433557]
[1765326474004,3.2,137.49,137.47,9.67433557]
[1765326474706,9.7454,137.49,137.47,0.04803557]
[1765326475007,3.2,137.49,137.47,0.04803557]
[1765326475405,12.33153263,137.48,137.47,0.04803557]
[1765326480616,13.79153263,137.48,137.47,0.04803557]
[1765326483918,3.1,137.46,137.42,3.08]
[1765326484922,0.05399908,137.45,137.43,3.09448818]
[1765326487421,3.15399908,137.45,137.43,3.09448818]
[1765326487621,3.1,137.44,137.36,3.04]
[1765326488026,3.1,137.41,137.36,3.04]
[1765326488626,3.1,137.39,137.37,0.05378552]
[1765326491421,0.05192785,137.4,137.37,3.16378552]
[1765326491831,3.12,137.45,137.38,3.11]
[1765326492433,6.5481,137.44,137.38,9.6604]
[1765326492635,9.6681,137.44,137.39,3.11]
[1765326492834,0.04615693,137.43,137.41,3.11]
[1765326496039,3.12,137.47,137.41,3.11]
[1765326496345,3.12,137.47,137.43,3.11]
[1765326496938,0.05192435,137.46,137.44,3.1630727]
[1765326498950,9.71872435,137.46,137.44,0.0530727]
[1765326499243,3.12,137.45,137.44,0.0530727]
[1765326500847,9.71872435,137.46,137.44,3.1630727]
[1765326501036,9.71872435,137.46,137.44,0.0530727]
[1765326501242,3.12,137.45,137.44,0.0530727]
[1765326505249,3.12,137.43,137.39,3.11]
[1765326505845,3.12,137.45,137.39,3.11]
[1765326506244,3.17328062,137.43,137.41,0.05603936]
[1765326506442,0.05328062,137.43,137.41,3.16603936]
[1765326507454,6.60158062,137.43,137.41,3.16603936]
[1765326508051,3.12,137.42,137.41,0.05603936]
[1765326508250,9.6687,137.42,137.41,0.05603936]
[1765326511657,3.27,137.4,137.37,65.1]
[1765326512350,3.27,137.4,137.38,3.24]
[1765326512548,0.05005147,137.4,137.38,3.2941321]
[1765326513558,6.60005147,137.4,137.38,3.2941321]
[1765326513856,0.05005147,137.4,137.38,3.2941321]
[1765326515260,3.27,137.46,137.4,3.24]
[1765326516159,3.27,137.43,137.42,0.04649036]
[1765326516456,3.27,137.43,137.41,0.05262107]
[1765326516653,9.8187,137.42,137.41,0.05262107]
[1765326518355,3.27,137.39,137.36,3.24]
[1765326519458,6.5507,137.38,137.36,3.29140631]
[1765326520256,0.04665764,137.39,137.36,3.29140631]
[1765326520650,0.04665764,137.39,137.37,3.24]
[1765326524659,0.04665764,137.39,137.37,4.7]
[1765326524865,0.04665764,137.39,137.38,3.24]
[1765326525067,6.5477,137.45,137.38,3.24]
[1765326525957,0.05545687,137.43,137.41,3.24]
[1765326527969,9.87365687,137.43,137.4,65.17504564]
[1765326528169,9.87365687,137.43,137.41,3.24]
[1765326528364,6.60365687,137.43,137.41,3.24]
[1765326529564,0.05545687,137.43,137.41,3.24]
[1765326538777,0.05545687,137.43,137.41,9.7891]
[1765326539082,0.05545687,137.43,137.42,3.24]
[1765326539781,6.5463,137.48,137.42,3.24]
[1765326540582,3.31,137.5,137.44,3.03]
[1765326540774,0.04696999,137.48,137.46,3.07693227]
[1765326542474,0.04696999,137.48,137.46,9.62363227]
[1765326542674,0.04696999,137.48,137.47,3.03]
[1765326542881,9.8539,137.53,137.47,3.03]
[1765326543083,9.8539,137.53,137.48,3.03]
[1765326543274,3.31,137.53,137.48,3.03]
[1765326543683,61.86,137.56,137.48,3.03]
[1765326543987,3.3559577,137.53,137.51,0.05176177]
[1765326544679,3.31,137.52,137.51,0.05176177]
[1765326546881,9.8994577,137.53,137.51,0.05176177]
[1765326547082,0.0459577,137.53,137.51,3.08176177]
[1765326550896,0.0459577,137.53,137.51,9.62606177]
[1765326551196,2.58380756,137.58,137.52,3.13]
[1765326551389,2.58380756,137.58,137.53,6.5434]
[1765326551593,3.04,137.58,137.54,3.13]
[1765326551896,5.62380756,137.6,137.54,9.6729]
[1765326552092,3.04,137.59,137.55,3.13]
[1765326552292,0.04920643,137.58,137.56,3.18500158]
[1765326553100,3.08920643,137.58,137.56,3.18500158]
[1765326554000,0.04920643,137.58,137.56,3.18500158]
[1765326555720,3.04,137.57,137.56,0.05500158]
[1765326555909,0.04920643,137.58,137.56,0.05500158]
[1765326556109,3.08920643,137.58,137.56,0.05500158]
[1765326557515,0.04920643,137.58,137.56,3.18500158]
[1765326557930,0.04920643,137.58,137.57,3.13]
[1765326558220,2.58380756,137.61,137.57,3.13]
[1765326559507,2.58380756,137.61,137.58,3.13]
[1765326559704,5.62380756,137.63,137.58,3.13]
[1765326560014,3.04,137.62,137.6,3.13]
[1765326560913,3.04,137.62,137.59,0.04826925]
[1765326561216,9.5784,137.64,137.6,3.13]
[1765326561417,12.16220756,137.64,137.61,0.05524121]
[1765326562018,3.04,137.63,137.61,0.05524121]
[1765326563715,9.5787,137.63,137.61,0.05524121]
[1765326563919,3.04,137.62,137.61,0.05524121]
[1765326564224,5.62380756,137.62,137.61,0.05524121]
[1765326564724,3.04,137.59,137.55,9.6721]
[1765326564931,3.04,137.59,137.56,3.13]
[1765326565813,3.0885688,137.59,137.56,3.1790053]
[1765326568419,0.0485688,137.59,137.56,3.1790053]
[1765326569526,0.0485688,137.59,137.57,3.18]
[1765326570226,3.1885688,137.59,137.57,3.18]
[1765326570924,3.1885688,137.59,137.56,3.2290053]
[1765326571130,0.0485688,137.59,137.56,3.2290053]
[1765326571628,6.5893688,137.59,137.56,3.2290053]
[1765326572523,9.7293688,137.59,137.56,3.2290053]
[1765326574927,3.14,137.57,137.56,0.0490053]
[1765326576624,9.6815,137.57,137.56,0.0490053]
[1765326578922,12.26490756,137.58,137.56,3.2290053]
[1765326579124,3.1885688,137.59,137.56,3.2290053]
[1765326579324,0.0485688,137.59,137.56,3.2290053]
[1765326579622,0.0485688,137.59,137.58,3.18]
[1765326580721,3.1885688,137.59,137.56,3.2290053]
[1765326581325,0.0485688,137.59,137.56,3.2290053]
[1765326583024,101.7093,137.64,137.56,3.2290053]
[1765326583025,247.14632212,137.67,137.58,2.58380756]
[1765326583226,247.14632212,137.67,137.6,5.76380756]
[1765326583429,3.14,137.68,137.61,3.18]
[1765326583627,5.72380756,137.7,137.65,3.18]
[1765326583926,3.14,137.7,137.65,3.18]
[1765326584129,3.14,137.7,137.66,0.0497115]
[1765326584130,3.16134251,137.69,137.66,0.0497115]
[1765326584630,3.16134251,137.69,137.66,3.2297115]
[1765326585130,3.16134251,137.69,137.66,0.0497115]
[1765326585729,9.69724251,137.69,137.66,3.2297115]
[1765326587428,0.02134251,137.69,137.66,3.2297115]
[1765326588022,0.02134251,137.69,137.66,9.7668115]
[1765326588223,0.02134251,137.69,137.67,3.18]
[1765326592938,3.16134251,137.69,137.66,0.0497115]
[1765326593433,9.6765,137.68,137.66,0.0497115]
[1765326593639,3.16134251,137.69,137.66,3.2297115]
[1765326594242,0.02134251,137.69,137.66,3.2297115]
[1765326595732,0.02134251,137.69,137.66,9.7669115]
[1765326595928,0.02134251,137.69,137.67,3.18]
[1765326596132,0.02134251,137.69,137.68,3.18]
[1765326596639,0.02134251,137.69,137.67,64.94]
[1765326596945,3.16134251,137.69,137.67,61.76]
[1765326597827,0.02134251,137.69,137.66,3.2297115]
[1765326598229,3.16134251,137.69,137.66,3.2297115]
[1765326599633,9.69734251,137.69,137.66,0.0497115]
[1765326599834,3.1,137.68,137.66,0.0497115]
[1765326600635,9.6366,137.68,137.66,0.0497115]
[1765326600841,3.1,137.67,137.66,0.0497115]
[1765326602642,3.1,137.68,137.66,0.0497115]
[1765326605539,3.12134251,137.69,137.66,3.3997115]
[1765326606042,3.12134251,137.69,137.66,0.0497115]
[1765326606543,3.12134251,137.69,137.66,3.3997115]
[1765326609040,3.22,137.73,137.66,3.3997115]
[1765326609242,3.22,137.72,137.68,3.35]
[1765326610143,3.22,137.72,137.69,0.05238834]
[1765326610539,3.22,137.71,137.69,0.05238834]
[1765326612944,3.22,137.74,137.69,3.40238834]
[1765326614233,3.22,137.74,137.69,0.05238834]
[1765326614532,3.22,137.74,137.69,3.40238834]
[1765326615535,3.22,137.74,137.7,9.8853]
[1765326615733,3.22,137.74,137.7,6.5353]
[1765326616132,3.22,137.74,137.7,9.8853]
[1765326617951,3.22,137.75,137.72,3.35]
[1765326618144,3.22,137.75,137.72,3.40089976]
[1765326618345,3.22,137.75,137.72,0.05089976]
[1765326619551,3.22,137.74,137.72,0.05089976]
[1765326622054,3.22,137.74,137.72,3.40089976]
[1765326623452,3.22,137.74,137.72,0.05089976]
[1765326625448,3.22,137.76,137.72,3.40089976]
[1765326625661,3.22,137.76,137.73,3.35]
[1765326625955,3.22,137.81,137.73,3.35]
[1765326626157,3.22,137.81,137.76,0.05216927]
[1765326626341,3.22,137.79,137.76,0.05216927]
[1765326626543,3.22,137.78,137.76,0.05216927]
[1765326627143,9.7521,137.77,137.76,0.05216927]
[1765326627343,4.02858945,137.79,137.71,3.35]
[1765326627344,3.22,137.76,137.71,3.35]
[1765326628355,3.22,137.74,137.72,0.05046362]
[1765326631153,3.19764136,137.75,137.72,3.20046362]
[1765326631359,0.04764136,137.75,137.72,3.20046362]
[1765326632442,0.04764136,137.75,137.72,0.05046362]
[1765326632647,3.15,137.82,137.74,3.15]
[1765326633450,167.31088945,137.84,137.73,61.72]
[1765326633451,3.15,137.79,137.75,9.6829]
[1765326633642,3.15,137.79,137.76,3.20318396]
[1765326633846,3.15,137.83,137.76,3.20318396]
[1765326634459,3.15,137.81,137.77,3.15]
[1765326634651,3.15,137.81,137.78,0.05330699]
[1765326637453,3.15,137.79,137.78,0.05330699]
[1765326642169,9.6811,137.79,137.78,0.05330699]
[1765326649370,3.15,137.79,137.78,0.05330699]
[1765326649964,3.15,137.8,137.78,0.05330699]
[1765326650169,3.15,137.82,137.78,3.20330699]
[1765326651670,9.6787,137.85,137.78,3.20330699]
[1765326652165,9.6787,137.85,137.81,3.15]
[1765326652365,9.6787,137.85,137.82,3.20587019]
[1765326653067,3.15,137.85,137.82,3.20587019]
[1765326653268,3.15,137.88,137.83,3.15]
[1765326653472,3.15,137.88,137.84,3.20423708]
[1765326653672,3.15,137.91,137.84,3.20423708]
[1765326654369,9.6764,137.89,137.84,3.20423708]
[1765326654675,3.15,137.91,137.84,3.20423708]
[1765326654866,9.6769,137.88,137.84,3.20423708]
[1765326656071,3.15,137.88,137.84,3.20423708]
[1765326657476,3.15,137.9,137.85,3.15]
[1765326658777,3.15,137.9,137.86,3.15]
[1765326660862,3.24,137.92,137.86,3.15]
[1765326661066,3.24,137.92,137.88,3.13916246]
[1765326661267,3.24,137.94,137.88,3.13916246]
[1765326662175,9.7634,137.96,137.91,3.09]
[1765326662380,9.7634,137.96,137.92,3.13944189]
[1765326662381,3.24,137.96,137.92,3.13944189]
[1765326663178,3.24,137.96,137.92,0.04944189]
[1765326663482,3.24,137.95,137.92,0.04944189]
[1765326663672,3.24,137.98,137.92,3.13944189]
[1765326664184,3.24,137.97,137.92,3.13944189]
[1765326664382,3.24,137.97,137.92,0.04944189]
[1765326665288,9.763,137.97,137.92,0.04944189]
[1765326665492,3.24,137.96,137.92,0.04944189]
[1765326665876,3.24,137.96,137.92,3.15944189]
[1765326666073,394.23439205,138.0,137.92,3.15944189]
[1765326666280,3.47372242,138.01,137.95,3.11]
[1765326666583,3.47372242,138.01,137.99,3.11]
[1765326667175,3.47372242,138.01,137.99,9.6315]
[1765326667381,3.47372242,138.01,137.98,3.11]
[1765326667574,6.59372242,138.01,137.98,3.11]
[1765326667778,3.47372242,138.01,137.98,3.11]
[1765326667981,6.59372242,138.01,137.98,3.11]
[1765326669281,3.47372242,138.01,137.98,3.11]
[1765326670081,3.47372242,138.01,138.0,3.11]
[1765326670290,1.37899436,138.01,138.0,3.11]
[1765326670784,4.49899436,138.01,137.98,3.11]
[1765326671087,4.49899436,138.01,137.97,3.16022454]
[1765326673785,1.37899436,138.01,137.98,3.11]
[1765326674392,1.37899436,138.01,138.0,3.11]
[1765326674684,3.12,138.07,138.0,3.11]
[1765326674889,3.12,138.07,138.02,3.15950457]
[1765326675290,3.12,138.06,138.02,0.04950457]
[1765326675486,3.12,138.04,138.02,0.04950457]
[1765326676580,3.12,138.06,138.02,3.15950457]
[1765326676886,5.68491275,138.03,138.02,0.04950457]
[1765326677579,6.5207,138.01,137.95,9.6332]
[1765326677787,3.12,138.0,137.92,3.11]
[1765326677986,2.56491275,137.99,137.93,3.11]
[1765326678588,3.12,137.98,137.95,0.04982493]
[1765326678788,3.16706154,137.97,137.95,0.04982493]
[1765326682093,0.04706154,137.97,137.95,3.15982493]
[1765326682893,3.16706154,137.97,137.95,0.04982493]
[1765326684292,0.04706154,137.97,137.95,3.15982493]
[1765326684597,0.04706154,137.97,137.96,3.11]
[1765326687096,3.16706154,137.97,137.95,0.04982493]
[1765326687591,0.04706154,137.97,137.95,3.15982493]
[1765326687794,0.04706154,137.97,137.95,0.04982493]
[1765326688385,0.04706154,137.97,137.95,9.68332493]
[1765326688590,0.04706154,137.97,137.96,3.11]
[1765326688790,0.04706154,137.97,137.95,6.57332493]
[1765326688994,0.04706154,137.97,137.95,3.11982493]
[1765326689987,3.09706154,137.97,137.95,0.04982493]
[1765326693188,9.61966154,137.97,137.95,0.04982493]
[1765326693488,9.61966154,137.97,137.85,101.5491]
[1765326693489,3.05,137.95,137.89,64.69]
[1765326694401,0.05285875,137.93,137.91,0.04979351]
[1765326694804,3.10285875,137.93,137.91,0.04979351]
[1765326695205,3.05,137.92,137.91,0.04979351]
[1765326696300,3.05,137.9,137.87,61.62]
[1765326696610,3.05,137.89,137.87,61.62]
[1765326696805,3.05,137.89,137.84,3.07]
[1765326697306,3.10237948,137.88,137.85,0.05522256]
[1765326698208,12.19429223,137.88,137.85,0.05522256]
[1765326698406,5.61491275,137.86,137.85,0.05522256]
[1765326699410,3.05,137.85,137.79,123.62]
[1765326700000,3.05,137.85,137.8,3.07]
[1765326700500,2.56491275,137.87,137.79,123.62]
[1765326700501,0.04943243,137.84,137.81,9.65294973]
[1765326700700,0.04943243,137.84,137.81,3.12294973]
[1765326700904,3.05,137.88,137.81,3.12294973]
[1765326701201,3.05,137.88,137.82,3.07]
[1765326701906,3.09801911,137.86,137.82,3.07]
[1765326702208,0.04801911,137.86,137.83,3.12165078]
[1765326702605,0.04801911,137.86,137.83,9.65065078]
[1765326702796,0.04801911,137.86,137.83,3.12165078]
[1765326702999,3.09801911,137.86,137.83,0.05165078]
[1765326704405,3.05,137.84,137.83,0.05165078]
[1765326704797,3.09801911,137.86,137.83,3.12165078]
[1765326705002,3.09801911,137.86,137.83,0.05165078]
[1765326706013,3.05,137.85,137.83,0.05165078]
[1765326706609,3.05,137.84,137.83,0.05165078]
[1765326708121,9.5791,137.84,137.77,71.2617]
[1765326708416,9.5791,137.84,137.74,101.6296]
[1765326708417,3.05,137.8,137.74,64.73]
[1765326709206,0.05486444,137.78,137.76,0.05194359]
[1765326709417,3.10486444,137.78,137.76,0.05194359]
[1765326711834,0.05486444,137.78,137.76,3.12194359]
[1765326713935,0.05486444,137.78,137.77,3.07]
[1765326715430,3.05,137.83,137.78,3.07]
[1765326716224,3.05,137.82,137.78,3.07]
[1765326716424,6.5293,137.83,137.78,3.07]
[1765326716425,3.09677234,137.81,137.79,0.0459033]
[1765326717730,0.04677234,137.81,137.79,3.1159033]
[1765326718328,0.04677234,137.81,137.79,0.0459033]
[1765326718533,3.09677234,137.81,137.79,0.0459033]
[1765326719828,0.04677234,137.81,137.79,3.2359033]
[1765326721228,0.04677234,137.81,137.8,3.19]
[1765326722038,0.04677234,137.81,137.79,0.0459033]
[1765326722238,3.21677234,137.81,137.79,0.0459033]
[1765326725445,0.04677234,137.81,137.79,3.2359033]
[1765326725831,0.04677234,137.81,137.79,9.7670033]
[1765326726032,0.04677234,137.81,137.8,3.35]
[1765326727438,3.35,137.88,137.82,3.35]
[1765326727748,3.35,137.88,137.82,65.03]
[1765326727933,3.35,137.88,137.82,71.5597]
[1765326728545,0.05106321,137.86,137.84,0.04838665]
[1765326729437,0.05106321,137.86,137.84,3.39838665]
[1765326730438,0.05106321,137.86,137.84,9.92698665]
[1765326730645,0.05106321,137.86,137.85,3.35]
[1765326732345,0.05106321,137.86,137.84,0.04838665]
[1765326732544,3.40106321,137.86,137.84,61.72838665]
[1765326732845,0.05106321,137.86,137.84,61.72838665]
[1765326733045,3.40106321,137.86,137.84,61.72838665]
[1765326734841,3.40106321,137.86,137.84,0.04838665]
[1765326737743,9.92896321,137.86,137.84,0.04838665]
[1765326737948,3.35,137.85,137.84,0.04838665]
[1765326738348,3.35,137.82,137.79,3.35]
[1765326738653,3.35,137.85,137.79,3.35]
[1765326739049,9.8783,137.85,137.79,9.8811]
[1765326739253,9.8783,137.85,137.81,0.05083338]
[1765326739552,3.39975398,137.83,137.81,0.05083338]
[1765326740945,0.04975398,137.83,137.81,0.05083338]
[1765326742956,3.39975398,137.83,137.81,0.05083338]
[1765326743550,3.35,137.82,137.81,0.05083338]
[1765326746746,0.04975398,137.83,137.81,0.05083338]
[1765326746944,0.04975398,137.83,137.81,3.40083338]
[1765326747344,0.04975398,137.83,137.82,3.35]
[1765326749657,0.04975398,137.83,137.82,65.03]
[1765326750774,0.04975398,137.83,137.82,61.68]
[1765326751060,0.04975398,137.83,137.82,64.8]
[1765326751361,3.31,137.89,137.83,3.12]
[1765326752261,0.05352125,137.87,137.85,0.05573681]
[1765326753352,3.36352125,137.87,137.85,0.05573681]
[1765326753763,0.05352125,137.87,137.85,3.17573681]
[1765326755361,3.36352125,137.87,137.85,0.05573681]
[1765326757161,0.05352125,137.87,137.85,3.17573681]
[1765326757763,3.36352125,137.87,137.85,0.05573681]